Cogmind - Beta 15 --- EXPLORER MODE // 2025.08.04 @ 18:53:46 Player: Dert Result: Destroyed by Y-72 Warden with Railgun Performance ------------- Evolutions (7) 3500 Regions Visited (12) 2400 Robots Destroyed (58) 290 Value Destroyed (2279) 2279 Prototype IDs (1) 20 Alien Tech Used (0) 0 Bonus (500) 500 TOTAL SCORE: 8989 Bonus ------- Entered DSFs 500 Cogmind --------- Core Integrity 0/1300 Matter 159/300 Energy 28/100 System Corruption 32% Temperature Cool (9) Movement Core (100) Ox1 Location -3/Research Parts ------- > --- POWER (3) -------- (None) > --- PROPULSION (6) --- (None) > --- UTILITY (10) ----- Advanced Target Analyzer > --- WEAPON (3) ------- Gamma Rifle > --- INVENTORY (5) ---- Fusion Compressor Peak State ------------ > --- POWER ------------ Neutrino Core Micro Antimatter Reactor > --- PROPULSION ------- Thunder Leg Myomer Leg Myomer Leg Advanced VSS Leg Improved Thunder Leg Improved Thunder Leg > --- UTILITY ---------- Seismic Detector Advanced Force Field Advanced Point Defense System Hacking Suite > --- WEAPON ----------- Quantum Rifle Micro-nuke Launcher Scythe > --- INVENTORY -------- Flexi-carbon Leg Field Laser High-powered Shotgun Antimatter Cannon Power Maul [Rating: 97] Favorites ----------- Power Fission Core Engine Light Deuterium Engine Power Core Fission Core Reactor Micro Antimatter Reactor Propulsion VTOL Module Treads Advanced Treads Leg Myomer Leg Wheel Wheel Hover Unit Antigrav System Flight Unit VTOL Module Utility Propulsion Shielding Device Advanced Weight Redist. System Storage High-capacity Matter Pod Processor Advanced Target Analyzer Hackware Hacking Suite Protection Propulsion Shielding Weapon Scythe Energy Gun Quantum Rifle Energy Cannon Nova Cannon Ballistic Gun Light Assault Rifle Ballistic Cannon Antimatter Cannon Launcher Micro-nuke Launcher Special Weapon Mining Laser Impact Weapon Power Maul Slashing Weapon Scythe Build | -11 -10 -9 -9 -8 -7 -7 -6 -5 -4 -4 -4 -3 ------- Run | Yrd Mat Mat Min Mat Fac DSF Fac Fac Fac Upp Upp Res Slots Evolved 15 | . 1 2 . 2 2 . 2 2 2 . . 2 Power 2 | . . . . 2 . . . . . . . . Propulsion 4 | . . 1 . . 1 . 1 . . . . 1 Utility 8 | . 1 1 . . 1 . 1 2 2 . . . Weapon 1 | . . . . . . . . . . . . 1 Parts Attached 92 | 6 4 8 6 15 1 6 5 2 6 1 14 18 Power 16 | 1 . 1 1 5 . 1 1 . 1 . 1 4 Engine 7 | 1 . 1 1 4 . . . . . . . . Core 7 | . . . . 1 . 1 1 . 1 . 1 2 Reactor 2 | . . . . . . . . . . . . 2 Propulsion 29 | 2 2 2 2 4 . 3 2 . 2 . 5 5 Treads 3 | . . . . 3 . . . . . . . . Leg 7 | . . . . . . . . . . . 2 5 Wheel 2 | 2 . . . . . . . . . . . . Hover 2 | . . 1 . . . . . . . . 1 . Flight 15 | . 2 1 2 1 . 3 2 . 2 . 2 . Utility 30 | 2 1 4 2 4 1 . 1 2 2 . 7 4 Device 18 | 1 . . 1 3 1 . . 1 1 . 7 3 Storage 2 | . 1 1 . . . . . . . . . . Processor 3 | . . . 1 . . . . 1 . . . 1 Hackware 1 | . . . . . . . 1 . . . . . Protection 6 | 1 . 3 . 1 . . . . 1 . . . Artifact . | . . . . . . . . . . . . . Weapon 17 | 1 1 1 1 2 . 2 1 . 1 1 1 5 Energy Gun 4 | 1 . . . 1 . . . . . . . 2 Energy Cannon 1 | . . . . . . . . . . . . 1 Ballistic Gun 4 | . 1 1 . . . 1 . . . . 1 . Ballistic Cannon 2 | . . . . . . . . . . 1 . 1 Launcher 1 | . . . . . . . . . . . . 1 Special Weapon 1 | . . . 1 . . . . . . . . . Impact Weapon 2 | . . . . 1 . . . . 1 . . . Slashing Weapon 2 | . . . . . . 1 1 . . . . . Piercing Weapon . | . . . . . . . . . . . . . Special Melee Weapon . | . . . . . . . . . . . . . Unidentified Prototypes . | . . . . . . . . . . . . . Parts Lost 50 | . . 2 . . . 3 . 1 . . 22 22 Power 8 | . . . . . . 1 . . . . 3 4 Propulsion 18 | . . 1 . . . 2 . . . . 8 7 Utility 17 | . . 1 . . . . . 1 . . 11 4 Weapon 7 | . . . . . . . . . . . . 7 Highest Loss Streak 16 | . . 2 . . . 3 . 1 . . 16 8 To Critical Strikes . | . . . . . . . . . . . . . Average Backups 3 | . 2 3 4 4 4 3 3 4 4 3 3 3 Power . | . . . 1 . . . . . . . . . Propulsion . | . 1 1 1 2 3 1 . . . 1 . . Utility . | . 1 1 1 1 . . . . . . . . Weapon 1 | . . . . . 1 1 2 3 3 1 2 2 Tool/Special . | . . . . . . . . . . . . . Unused Backups 8 | . . . . 4 . . 2 . 1 . . 1 Power . | . . . . . . . . . . . . . Propulsion 3 | . . . . 3 . . . . . . . . Utility 1 | . . . . 1 . . . . . . . . Weapon 4 | . . . . . . . 2 . 1 . . 1 Tool/Special . | . . . . . . . . . . . . . Average Slot Usage (%) 60 | . 87 82 65 73 71 74 81 73 78 83 42 38 Engine 3 | . 12 10 10 9 . . . . . . . . Core 3 | . . . . . 7 6 6 5 14 15 5 1 Leg 3 | . . . . . . . . . . . 1 12 Flight 16 | . 7 27 29 21 21 22 29 27 25 25 9 . Device 9 | . 12 7 . 14 21 21 18 17 10 13 7 7 Processor 1 | . . . . . . . . . 5 5 1 2 Hackware 2 | . . . . . . . 5 5 5 5 5 2 Protection 10 | . 12 25 17 15 14 14 12 10 13 15 4 . Energy Gun 1 | . 12 1 . 3 . . . . . . . 1 Ballistic Gun 2 | . 6 10 2 2 . 5 2 . . . . . Impact Weapon 1 | . . . . 2 7 3 . . 2 4 3 1 Slashing Weapon 1 | . . . . . . . 6 5 3 . 1 2 Peak Build Rating 97 | 6 8 12 11 25 20 31 41 48 61 64 66 97 Average Rating 32 | 3 7 9 9 18 20 25 34 38 52 59 38 54 On Entrance 24 | . 6 7 9 10 17 20 24 36 42 55 61 35 Naked Turns . | . . . . . . . . . . . . . Heaviest Build 65 | 7 12 17 12 26 12 16 21 19 31 36 65 61 Greatest Support 149 | 20 20 12 12 66 12 21 22 22 41 34 50 149 Greatest Overweight (x) 11 | . . 2 . 2 . 1 . . . 1 11 11 Average Overweight (x) . | . . . . . . . . . . . . . Largest Inventory Capacity 8 | 5 5 8 8 5 5 5 5 5 5 5 5 5 Average Capacity 5 | 5 5 5 5 5 5 5 5 5 5 5 5 5 Most Carried 5 | 1 4 5 5 5 4 4 5 5 5 5 5 5 Average Carried 3 | . 2 3 4 4 4 3 3 4 4 4 3 3 Final Capacity 8 | 5 5 8 5 5 5 5 5 5 5 5 5 5 Final Carried 5 | 1 4 4 5 5 4 4 5 4 5 4 4 1 Class Distribution -------------------- 53% | Hacker-Sprinter 46% | Hacker-Mutant Dominant Class ---------------- Hacker-Mutant | -10/Materials Hacker-Sprinter | -9/Materials Hacker-Sprinter | -9/Mines Hacker-Sprinter | -8/Materials Hacker-Sprinter | -7/Factory Hacker-Mutant | -7/DSF Hacker-Sprinter | -6/Factory Hacker-Sprinter | -5/Factory Hacker-Sprinter | -4/Factory Hacker-Sprinter | -4/Upper Caves Hacker-Mutant | -4/Upper Caves Hacker-Mutant | -3/Research Resources | -11 -10 -9 -9 -8 -7 -7 -6 -5 -4 -4 -4 -3 ----------- Run | Yrd Mat Mat Min Mat Fac DSF Fac Fac Fac Upp Upp Res Matter Collected 1979 | 220 98 73 98 350 10 42 93 70 98 102 364 361 Remotely . | . . . . . . . . . . . . . Salvage Created 1880 | 36 82 70 98 591 . . . 23 23 127 221 609 Parts 84 | 1 6 5 3 29 . . . . . 2 6 32 Haulers Intercepted . | . . . . . . . . . . . . . Recyclers Shooed 2 | . . . . . . . . . . . . 2 Parts Field Recycled . | . . . . . . . . . . . . . Retrieved Matter . | . . . . . . . . . . . . . Parts Self-Destructed . | . . . . . . . . . . . . . Prevented . | . . . . . . . . . . . . . Kills | -11 -10 -9 -9 -8 -7 -7 -6 -5 -4 -4 -4 -3 ------- Run | Yrd Mat Mat Min Mat Fac DSF Fac Fac Fac Upp Upp Res Combat Hostiles Destroyed 43 | 1 4 2 2 12 . . . . 1 4 5 12 Melee 11 | . . . . 4 . . . . 1 3 3 . Guns 14 | 1 3 2 2 5 . . . . . . . 1 Cannons 3 | . . . . . . . . . . . . 3 AOE 8 | . . . . 1 . . . . . . . 7 Classes Destroyed 11 | 1 2 1 . 3 . . . . . 1 . 3 Worker 6 | . 1 . . 1 . . . . . . . 4 Builder 4 | . . . . . . . . . . . . 4 Tunneler 1 | . . . . . . . . . . . . 1 Recycler 1 | . . . . . . . . . . . . 1 Watcher 3 | . . . . 1 . . . 1 . . . 1 Swarmer 11 | . 4 1 . 3 . . . . 1 2 . . Grunt 12 | 1 . . 2 1 . . . . . . 2 6 Brawler 1 | . . . . 1 . . . . . . . . Sentry 7 | . . 1 . 5 . . . . . 1 . . Hunter 3 | . . . . 2 . . . . . . 1 . Programmer 9 | . . . . . . . . . . 1 2 6 Best Kill Streak 16 | 1 4 1 2 4 . . . 1 1 3 2 16 Combat Bots Only 5 | 1 4 1 2 3 . . . . 1 3 2 5 Max Kills in Single Turn 3 | 1 1 1 1 1 . . . 1 1 1 1 3 Gunslinging . | . . . . . . . . . . . . . Exploded 2 | . . . . 1 . . . . . . . 2 Melee 1 | . . . . 1 . . . . 1 1 1 . Uniques/NPCs Destroyed . | . . . . . . . . . . . . . Combat | -11 -10 -9 -9 -8 -7 -7 -6 -5 -4 -4 -4 -3 -------- Run | Yrd Mat Mat Min Mat Fac DSF Fac Fac Fac Upp Upp Res Hostile Shots Fired 996 | 4 19 79 10 65 . 17 . 6 25 27 269 475 Missed 382 | 1 3 23 3 35 . 8 . 5 14 13 89 188 Hits 614 | 3 16 56 7 30 . 9 . 1 11 14 180 287 Melee 5 | . . . . . . . . . . 3 2 . Projectile 609 | 3 16 56 7 30 . 9 . 1 11 11 178 287 Critical Strikes 31 | . . 1 . 2 . 1 . . . 1 8 18 Actively Blocked 3 | . . . . . . 1 . . . 1 1 . Part Disruptions 1 | . . . . . . . . . . . . 1 Damage Taken 7214 | 19 73 338 57 267 . 243 24 46 112 183 1936 3916 Core 2424 | . 3 56 25 114 . 41 . 26 47 49 749 1314 Absorbed by Shields 448 | . . . . . . . . . . . 225 223 Redirected to Shielding 262 | . 8 12 . 25 . 42 7 . 11 33 124 . Ignored by Resistances 4637 | 12 55 232 35 172 . 138 13 27 70 116 1311 2456 Regen/Repaired (Parts) 86 | . . . . 43 . . . 43 . . . . Core Remaining (%) 84 | 100 98 . 79 79 . 94 100 97 . . 26 . Volleys Fired 168 | 4 13 20 34 32 . 10 . . . 3 10 42 Largest 2 | 1 2 1 1 1 . 1 . . . 1 1 2 Hottest 113 | 50 70 20 100 50 . 28 . . . 33 33 113 Shots Fired 179 | 4 20 20 34 32 . 10 . . . 3 10 46 Gun 110 | 4 20 20 9 32 . 10 . . . . . 15 Cannon 30 | . . . . . . . . . . 3 10 17 Launcher 14 | . . . . . . . . . . . . 14 Special 25 | . . . 25 . . . . . . . . . Kinetic 76 | . 7 20 9 2 . 10 . . . 3 10 15 Thermal 59 | 4 13 . 25 . . . . . . . . 17 Explosive 14 | . . . . . . . . . . . . 14 Electromagnetic 30 | . . . . 30 . . . . . . . . Robot Hit Streak 14 | 4 11 6 8 12 . 10 . . . 13 14 9 Robot Miss Streak 4 | . 1 1 1 4 . . . . . . 1 2 Penetration Max . | . . . . . . . . . . . . . Secondary Targets . | . . . . . . . . . . . . . Shots Hit Robots 178 | 4 15 17 8 32 . 9 . 3 3 13 35 39 Core Hits 85 | 2 5 5 3 16 . 2 . 1 1 3 6 41 Critical Kills 2 | . . . 1 . . . . . . . 1 . Critical Parts Destroyed 7 | . . . . 1 . . . . 1 1 1 3 Critical Strikes 22 | . 3 . 1 3 . . . . 1 2 7 5 Burn 3 | . 3 . . . . . . . . . . . Destroy 1 | . . . 1 . . . . . . . . . Blast 4 | . . . . . . . . . . . 2 2 Corrupt 2 | . . . . 2 . . . . . . . . Smash 9 | . . . . 1 . . . . 1 2 2 3 Sever 3 | . . . . . . . . . . . 3 . Melee Attacks 64 | . . . . 12 . . . 4 4 10 26 8 Impact 46 | . . . . 12 . . . . 4 9 15 6 Slashing 18 | . . . . . . . . 4 . 1 11 2 Piercing . | . . . . . . . . . . . . . Sneak Attacks . | . . . . . . . . . . . . . Combat Hostiles . | . . . . . . . . . . . . . Follow-up Attacks . | . . . . . . . . . . . . . Damage Inflicted 7645 | 49 190 138 77 889 . 182 . 127 147 555 1441 3850 Guns 1408 | 49 190 138 77 379 . 182 . . . . . 393 Cannons 1196 | . . . . . . . . . . 130 383 683 Explosions 2547 | . . . . 138 . . . . . . . 2409 Melee 2489 | . . . . 372 . . . 127 147 425 1058 360 Ramming 5 | . . . . . . . . . . . . 5 Kinetic 1516 | . 41 138 77 . . 182 . . . 130 383 565 Thermal 847 | 49 149 . . 138 . . . . . . . 511 Explosive 2409 | . . . . . . . . . . . . 2409 Electromagnetic 379 | . . . . 379 . . . . . . . . Impact 1925 | . . . . 372 . . . . 147 393 714 299 Slashing 564 | . . . . . . . . 127 . 32 344 61 Piercing . | . . . . . . . . . . . . . Highest Corruption 32 | . . . . . . . . . . 3 7 32 Average Corruption 8 | . . . . . . . . . . 2 4 14 Corruption Purged . | . . . . . . . . . . . . . Corruption Blocked . | . . . . . . . . . . . . . Effects 44 | . . . . . . . . . . 1 19 24 Message Errors 12 | . . . . . . . . . . . 6 6 Matter Fused 11 | . . . . . . . . . . . 6 5 Heat Flow Errors 2 | . . . . . . . . . . . 1 1 Energy Discharges 6 | . . . . . . . . . . . 3 3 Parts Rejected 3 | . . . . . . . . . . 1 1 1 Data Loss (minor) 5 | . . . . . . . . . . . 1 4 Data Loss (major) 1 | . . . . . . . . . . . . 1 Alerts 3 | . . . . . . . . . . . 1 2 Misdirections 1 | . . . . . . . . . . . . 1 Overload Shots . | . . . . . . . . . . . . . Overflow Damage 645 | . . . . 35 . . . 8 48 82 171 301 Projectiles 38 | . . . . . . . . . . . 29 9 Explosions 131 | . . . . . . . . . . . . 131 Melee 476 | . . . . 35 . . . 8 48 82 142 161 Knockbacks 21 | . . . . 1 . . . . . 3 13 4 Impact 11 | . . . . 1 . . . . . 2 6 2 Kinetic 10 | . . . . . . . . . . 1 7 2 Secondary . | . . . . . . . . . . . . . Self-Inflicted Damage 21 | . . . . 19 . . . . . . . 2 Shots 1 | . . . . 1 . . . . . . . . Rammed 3 | . . . . . . . . . . . . 3 Targets Rammed 3 | . . . . . . . . . . . . 3 Kicked . | . . . . . . . . . . . . . Crushed . | . . . . . . . . . . . . . Highest Temperature 323 | 58 60 22 323 79 . . 3 . 19 224 310 163 Average Temperature 75 | 34 28 7 133 26 . . 2 . 9 35 106 42 Received Heat Transfer 1113 | 18 . 81 51 126 . . . 20 9 . 500 308 Effects 2 | . . . 1 . . . . . . . 1 . Energy Bleed 1 | . . . 1 . . . . . . . . . Interference 1 | . . . . . . . . . . . 1 . Siege Activations . | . . . . . . . . . . . . . Martial Activations . | . . . . . . . . . . . . . Shielding Activations . | . . . . . . . . . . . . . Robots Disrupted . | . . . . . . . . . . . . . Combat Hostiles . | . . . . . . . . . . . . . Robots Corrupted 5 | . . . . 2 . . . . . 1 1 1 Combat Hostiles 5 | . . . . 2 . . . . . 1 1 1 Parts Fried 6 | . . . . 4 . . . . . . 1 1 Impact Corruptions 19 | . . . . 3 . . . . 1 4 4 7 Robots Melted 1 | . 1 . . . . . . . . . . . Combat Hostiles 1 | . 1 . . . . . . . . . . . Parts Melted 4 | . 2 . . . . . . . . . 1 1 Heat Transferred 1432 | 148 666 . . 100 . . . . . . . 518 Parts Sabotaged . | . . . . . . . . . . . . . Parts Stolen . | . . . . . . . . . . . . . Parts Stripped . | . . . . . . . . . . . . . Power Chain Reactions 3 | . . . . 3 . . . . . . . . Alert | -11 -10 -9 -9 -8 -7 -7 -6 -5 -4 -4 -4 -3 ------- Run | Yrd Mat Mat Min Mat Fac DSF Fac Fac Fac Upp Upp Res Maximum Alert Level 1 | . . . . . . . . . . . . 1 Low Security (%) 97 | 100 100 100 100 100 100 100 100 100 100 . . 92 Level 1 2 | . . . . . . . . . . . . 7 Level 2 . | . . . . . . . . . . . . . Level 3 . | . . . . . . . . . . . . . Level 4 . | . . . . . . . . . . . . . Level 5 . | . . . . . . . . . . . . . High Security . | . . . . . . . . . . . . . Max Security . | . . . . . . . . . . . . . Peak Influence 261 | 20 85 30 35 186 56 29 8 7 12 . . 261 Initial 56 | . 2 13 4 9 56 29 . . . . . . Average 41 | 1 32 4 1 72 56 13 . 1 1 . . 80 Influence Increases 1737 | 20 105 62 66 456 . . 9 13 32 90 240 644 Destroy 0b10 Robot/C 860 | 20 80 40 40 240 . . . . 20 80 100 240 Destroy 0b10 Robot/NC 75 | . 5 . . 10 . . . 5 . . . 55 Destroy Leader 216 | . 20 20 10 92 . . . 2 . 10 20 42 Successful Hack 30 | . . 2 . 1 . . 9 6 12 . . . Disable Machine 12 | . . . . . . . . . . . . 12 Destroy Structure 214 | . . . 1 23 . . . . . . . 190 Partial Spotted 45 | . . . 15 30 . . . . . . . . Lose Combat Pursuer 285 | . . . . 60 . . . . . . 120 105 Influence Decreases 1725 | 15 65 92 46 320 115 56 9 13 27 65 270 632 Entered New Map 228 | . 3 32 11 26 115 27 . . . 3 11 . Time Decay 1250 | 15 62 60 35 294 . . 9 13 27 62 219 454 Lost Part 247 | . . . . . . 29 . . . . 40 178 Squads Dispatched 9 | . . . . 2 . 2 1 . 1 . . 3 Investigation 1 | . . . . . . . . . . . . 1 Extermination 2 | . . . . . . . 1 . . . . 1 Reinforcement 6 | . . . . 2 . 2 . . 1 . . 1 Assault . | . . . . . . . . . . . . . Garrison . | . . . . . . . . . . . . . Intercept . | . . . . . . . . . . . . . Searches Triggered . | . . . . . . . . . . . . . Construction Impeded 1 | . . . . . . . . . . . . 1 Haulers Reinforced . | . . . . . . . . . . . . . Active Scanning Responses . | . . . . . . . . . . . . . Cargo Convoy Interrupts . | . . . . . . . . . . . . . Stealth | -11 -10 -9 -9 -8 -7 -7 -6 -5 -4 -4 -4 -3 --------- Run | Yrd Mat Mat Min Mat Fac DSF Fac Fac Fac Upp Upp Res Distress Signals 4 | . 1 . . 2 . . . . . . . 1 Communications Jammed . | . . . . . . . . . . . . . Distress Signals . | . . . . . . . . . . . . . Times Spotted 133 | 1 8 6 2 23 . 11 . 17 11 10 19 25 Peak Tracking Total 10 | 1 3 4 2 4 . 8 1 8 10 5 6 8 Tactical Retreats 21 | . . . . 3 . 2 . 3 1 1 7 4 Traps | -11 -10 -9 -9 -8 -7 -7 -6 -5 -4 -4 -4 -3 ------- Run | Yrd Mat Mat Min Mat Fac DSF Fac Fac Fac Upp Upp Res Traps Triggered 1 | . . . . . . . . 1 . . . . Indirectly . | . . . . . . . . . . . . . Trap Hack Attempts . | . . . . . . . . . . . . . Triggered . | . . . . . . . . . . . . . Disarmed . | . . . . . . . . . . . . . Reprogrammed . | . . . . . . . . . . . . . Reused . | . . . . . . . . . . . . . Traps Extracted . | . . . . . . . . . . . . . Installed . | . . . . . . . . . . . . . Triggered . | . . . . . . . . . . . . . Machines | -11 -10 -9 -9 -8 -7 -7 -6 -5 -4 -4 -4 -3 ---------- Run | Yrd Mat Mat Min Mat Fac DSF Fac Fac Fac Upp Upp Res Machines Disabled 3 | . . . . . . . . . . . . 3 Max in Single Turn 2 | . . . . . . . . . . . . 2 Machines Repaired . | . . . . . . . . . . . . . Machines Dismantled . | . . . . . . . . . . . . . Machines Sabotaged . | . . . . . . . . . . . . . Overloaded Fab Kills . | . . . . . . . . . . . . . Hacking | -11 -10 -9 -9 -8 -7 -7 -6 -5 -4 -4 -4 -3 --------- Run | Yrd Mat Mat Min Mat Fac DSF Fac Fac Fac Upp Upp Res Machines Accessed 21 | . 2 1 . 4 1 . 2 5 2 . 1 3 Terminals 15 | . 2 1 . 3 1 . 1 3 1 . . 3 Fabricators 1 | . . . . . . . 1 . . . . . Repair Stations 2 | . . . . 1 . . . 1 . . . . Recycling Units . | . . . . . . . . . . . . . Scanalyzers 1 | . . . . . . . . 1 . . . . Garrison Access 1 | . . . . . . . . . 1 . . . Total Hacks 38 | . 3 1 . 10 1 . 4 8 5 . 1 5 Successful 31 | . 2 1 . 10 1 . 4 7 3 . 1 2 Failed 7 | . 1 . . . . . . 1 2 . . 3 Catastrophic . | . . . . . . . . . . . . . Database Lockouts . | . . . . . . . . . . . . . Manual . | . . . . . . . . . . . . . Terminals 27 | . 3 1 . 5 1 . 3 5 4 . . 5 Fabricators 1 | . . . . . . . 1 . . . . . Repair Stations 7 | . . . . 5 . . . 2 . . . . Recycling Units . | . . . . . . . . . . . . . Scanalyzers 1 | . . . . . . . . 1 . . . . Garrison Access 1 | . . . . . . . . . 1 . . . Terminal Hacks 21 | . 2 1 . 5 1 . 3 4 2 . 1 2 Record 4 | . 1 . . 2 . . . . 1 . . . Open Door 1 | . . . . . . . . . . . 1 . Open DSF 3 | . . . . . 1 . . 1 . . . 1 Level Access Points 1 | . . . . . . . . . 1 . . . Emergency Access Points 1 | . . . . . . . 1 . . . . . Alert Level 3 | . 1 . . 1 . . 1 . . . . . Locate Traps 1 | . . . . . . . . 1 . . . . Dispatch Records 2 | . . 1 . 1 . . . . . . . . Patrol Status 1 | . . . . . . . . 1 . . . . Investigation Status 2 | . . . . . . . 1 . . . . 1 Zone Layout 2 | . . . . 1 . . . 1 . . . . Fabricator Hacks 1 | . . . . . . . 1 . . . . . Build 1 | . . . . . . . 1 . . . . . Repair Station Hacks 7 | . . . . 5 . . . 2 . . . . Scan Component 4 | . . . . 3 . . . 1 . . . . Repair 3 | . . . . 2 . . . 1 . . . . Recycling Unit Hacks . | . . . . . . . . . . . . . Scanalyzer 1 | . . . . . . . . 1 . . . . Insert Component 1 | . . . . . . . . 1 . . . . Garrison Access Hacks 1 | . . . . . . . . . 1 . . . Unlock Access 1 | . . . . . . . . . 1 . . . Unauthorized Hacks . | . . . . . . . . . . . . . Terminals . | . . . . . . . . . . . . . Fabricators . | . . . . . . . . . . . . . Repair Stations . | . . . . . . . . . . . . . Recycling Units . | . . . . . . . . . . . . . Scanalyzers . | . . . . . . . . . . . . . Garrison Access . | . . . . . . . . . . . . . Data Cores Recovered . | . . . . . . . . . . . . . Used . | . . . . . . . . . . . . . Hacking Detections 6 | . 1 . . . . . 1 2 . . . 2 Full Trace Events 1 | . . . . . . . . . . . . 1 Feedback Events . | . . . . . . . . . . . . . Feedback Blocked . | . . . . . . . . . . . . . Robot Schematics Acquired . | . . . . . . . . . . . . . Robots Built . | . . . . . . . . . . . . . Authchips . | . . . . . . . . . . . . . Time . | . . . . . . . . . . . . . Total Robot Build Rating . | . . . . . . . . . . . . . Part Schematics Acquired . | . . . . . . . . . . . . . Parts Built 1 | . . . . . . . 1 . . . . . Authchips . | . . . . . . . . . . . . . Time 76 | . . . . . . . 76 . . . . . Total Part Build Rating 5 | . . . . . . . 5 . . . . . Parts Repaired 3 | . . . . 2 . . . 1 . . . . Time 71 | . . . . 58 . . . 13 . . . . Parts Recycled . | . . . . . . . . . . . . . Recycled Matter . | . . . . . . . . . . . . . Retrieved Matter . | . . . . . . . . . . . . . Retrieved Components . | . . . . . . . . . . . . . Parts Scanalyzed . | . . . . . . . . . . . . . Part Schematics Acquired . | . . . . . . . . . . . . . Parts Damaged . | . . . . . . . . . . . . . Bothacking | -11 -10 -9 -9 -8 -7 -7 -6 -5 -4 -4 -4 -3 ------------ Run | Yrd Mat Mat Min Mat Fac DSF Fac Fac Fac Upp Upp Res Used RIF Installer . | . . . . . . . . . . . . . Robots Hacked . | . . . . . . . . . . . . . Non-combat . | . . . . . . . . . . . . . Combat . | . . . . . . . . . . . . . Robot Hacks Applied . | . . . . . . . . . . . . . Relay Couplers Released . | . . . . . . . . . . . . . Fabnet Peak Effective % . | . . . . . . . . . . . . . Robots Rewired . | . . . . . . . . . . . . . Allies Hacked . | . . . . . . . . . . . . . Hacks Repelled . | . . . . . . . . . . . . . Allies | -11 -10 -9 -9 -8 -7 -7 -6 -5 -4 -4 -4 -3 -------- Run | Yrd Mat Mat Min Mat Fac DSF Fac Fac Fac Upp Upp Res Total Allies . | . . . . . . . . . . . . . Largest Group . | . . . . . . . . . . . . . Highest-Rated Group . | . . . . . . . . . . . . . Highest-Rated Ally . | . . . . . . . . . . . . . Total Orders . | . . . . . . . . . . . . . Ally Attacks . | . . . . . . . . . . . . . Total Damage . | . . . . . . . . . . . . . Kills . | . . . . . . . . . . . . . Allies Corrupted . | . . . . . . . . . . . . . Allies Melted . | . . . . . . . . . . . . . Intel | -11 -10 -9 -9 -8 -7 -7 -6 -5 -4 -4 -4 -3 ------- Run | Yrd Mat Mat Min Mat Fac DSF Fac Fac Fac Upp Upp Res Active Infowar (turns) 1322 | 11 149 156 2 107 19 102 232 100 93 132 141 78 Optics 2 | . . . 2 . . . . . . . . . Structural 316 | 11 149 156 . . . . . . . . . . Seismic 78 | . . . . . . . . . . . . 78 ECM 926 | . . . . 107 19 102 232 100 93 132 141 . Robot Analysis Total . | . . . . . . . . . . . . . Derelict Logs Recovered 1 | . . . . . . . . . . 1 . . Drone Launches . | . . . . . . . . . . . . . Drone Recoveries . | . . . . . . . . . . . . . Exploration | -11 -10 -9 -9 -8 -7 -7 -6 -5 -4 -4 -4 -3 ------------- Run | Yrd Mat Mat Min Mat Fac DSF Fac Fac Fac Upp Upp Res Turns Passed 3595 | 74 149 230 428 534 19 102 232 100 93 132 679 823 Spaces Moved 4766 | 71 178 375 680 699 60 126 426 296 251 346 758 500 Core 184 | 16 . . . 3 . . . . . . 5 160 Treads 46 | . . . . 46 . . . . . . . . Legs 444 | . . . . . . . . . . . 104 340 Wheels 130 | 55 75 . . . . . . . . . . . Hover 7 | . . . . . . . . . . . 7 . Flight 3955 | . 103 375 680 650 60 126 426 296 251 346 642 . Fastest Speed 24 | 50 37 32 30 30 30 27 24 24 24 24 24 50 Average Speed 46 | 73 55 36 30 39 30 30 24 24 24 24 52 130 Slowest Speed 915 | 80 80 194 34 225 30 110 28 24 28 96 915 600 Overloaded Moves . | . . . . . . . . . . . . . Propulsion Burnouts . | . . . . . . . . . . . . . Robots Hopped 16 | . . 3 4 4 . . 2 . 3 . . . Potential Cave-ins . | . . . . . . . . . . . . . Cave-ins Triggered . | . . . . . . . . . . . . . Exploration Rate (%) 31 | 9 43 24 69 45 2 53 8 8 9 56 75 11 Regions Visited 12 Branch Regions 3 Pre-discovered Areas . | . . . . . . . . . . . . . Known Exits Taken 11 | 1 1 1 1 1 1 . 1 1 1 1 1 . Unknown Exits Taken . | . . . . . . . . . . . . . Scrap Searched 4 | . . . . . . . . . . 2 2 . Spaces Dug 14 | . . . 12 2 . . . . . . . . Terrain Destroyed 159 | . . . 13 23 . 1 . . . . 1 121 Melee 2 | . . . . 2 . . . . . . . . Projectile 17 | . . . 13 . . 1 . . . . 1 2 AOE 140 | . . . . 21 . . . . . . . 119 Terrain Rammed . | . . . . . . . . . . . . . Walls Destroyed . | . . . . . . . . . . . . . Machines Disabled . | . . . . . . . . . . . . . Actions | -11 -10 -9 -9 -8 -7 -7 -6 -5 -4 -4 -4 -3 --------- Run | Yrd Mat Mat Min Mat Fac DSF Fac Fac Fac Upp Upp Res Total 5808 | 85 208 451 817 906 60 178 553 317 272 372 980 609 Wait 553 | 4 10 37 86 93 . 26 106 13 . 4 147 27 Move 4723 | 70 177 368 671 690 59 125 420 295 246 345 757 500 Hop 14 | . . 3 4 4 . . 2 . 1 . . . Pick Up 38 | 1 3 3 2 11 . 3 6 . 2 2 4 1 Fast Attach 81 | 6 2 5 3 22 . 3 3 2 6 . 14 15 Attach 47 | . . 4 4 7 1 1 5 2 2 5 9 7 Detach 32 | . . 3 6 5 . 1 3 1 2 2 7 2 Swap 17 | . 2 1 3 1 . 4 1 . 2 . 1 2 Drop 67 | . 1 7 4 29 . 5 6 . 7 1 5 2 Fire 168 | 4 13 20 34 32 . 10 . . . 3 10 42 Melee 64 | . . . . 12 . . . 4 4 10 26 8 Ram 3 | . . . . . . . . . . . . 3 Kick . | . . . . . . . . . . . . . Crush . | . . . . . . . . . . . . . Escape Stasis 1 | . . . . . . . 1 . . . . . Rewire . | . . . . . . . . . . . . . Trap . | . . . . . . . . . . . . . Miscellaneous . | . . . . . . . . . . . . . Route ------- -11/Scrapyard -10/Materials (discovered 2 exits: *Mat / *Min) -9/Materials (discovered 2 exits: *Min x2) -9/Mines -8/Materials -7/Factory -7/DSF -6/Factory -5/Factory -4/Factory (discovered 6 exits: Res x4 / *Upp / Gar) -4/Upper Caves -4/Upper Caves (discovered 2 exits: *Res / *Zhi) -3/Research History --------- Turn | Location | Event 6 | -11/Scrapyard | Met Revision 17 47 | -11/Scrapyard | Identified exit to Materials 47 | -11/Scrapyard | Discovered exit to Materials (range 8) 75 | -11/Scrapyard | Entered Materials 75 | -10/Materials | Evolved 1 slot: Utility x1 181 | -10/Materials | Identified exit to Mines 181 | -10/Materials | Discovered exit to Mines (range 10) 207 | -10/Materials | Identified exit to Materials 207 | -10/Materials | Discovered exit to Materials (range 4) 224 | -10/Materials | Entered another Materials area 224 | -9/Materials | Evolved 2 slots: Propulsion x1, Utility x1 252 | -9/Materials | Identified exit to Mines 252 | -9/Materials | Discovered exit to Mines (range 9) 415 | -9/Materials | Discovered exit to Mines (range 9) 454 | -9/Materials | Entered Mines 468 | -9/Mines | Found a hidden stash of uninstalled traps 493 | -9/Mines | Identified exit to Materials 493 | -9/Mines | Discovered exit to Materials (range 16) 531 | -9/Mines | Build established: Hacker-Sprinter 882 | -9/Mines | Entered Materials 882 | -8/Materials | Evolved 2 slots: Power x2 1364 | -8/Materials | Repaired Propulsion Shielding 1398 | -8/Materials | Repaired VTOL Module 1402 | -8/Materials | Identified exit to Factory 1402 | -8/Materials | Discovered exit to Factory (range 16) 1416 | -8/Materials | Entered Factory 1416 | -7/Factory | Evolved 2 slots: Propulsion x1, Utility x1 1435 | -7/Factory | Identified exit to DSF 1435 | -7/Factory | Entered DSF 1470 | -7/DSF | Additional patrols routed to DSF 1487 | -7/DSF | Identified exit to Factory 1487 | -7/DSF | Discovered exit to Factory (range 15) 1519 | -7/DSF | Lost 3 parts (1p2n) 1537 | -7/DSF | Entered Factory 1537 | -6/Factory | Evolved 2 slots: Propulsion x1, Utility x1 1673 | -6/Factory | Identified exit to Factory 1673 | -6/Factory | Discovered exit to Factory (range 10) 1760 | -6/Factory | Fabricated Antimatter Cannon (x1) 1769 | -6/Factory | Entered another Factory area 1769 | -5/Factory | Evolved 2 slots: Utility x2 1787 | -5/Factory | Repaired Propulsion Shielding 1804 | -5/Factory | Identified exit to DSF 1867 | -5/Factory | Identified exit to Factory 1867 | -5/Factory | Discovered exit to Factory (range 6) 1869 | -5/Factory | Entered another Factory area 1869 | -4/Factory | Evolved 2 slots: Utility x2 1917 | -4/Factory | Identified exit to Garrison 1921 | -4/Factory | Identified exit to Research 1944 | -4/Factory | Identified exit to Upper Caves 1944 | -4/Factory | Discovered exit to Upper Caves (range 12) 1962 | -4/Factory | Entered Upper Caves 1964 | -4/Upper Caves | Learned Research machine intel 2064 | -4/Upper Caves | Attracted the attention of an 0b10 checkpoint 2092 | -4/Upper Caves | Identified exit to Upper Caves 2092 | -4/Upper Caves | Discovered exit to Upper Caves (range 9) 2094 | -4/Upper Caves | Entered another Upper Caves area 2221 | -4/Upper Caves | Spotted B-86 Titan 2374 | -4/Upper Caves | Lost 16 parts (3p3n10u) 2432 | -4/Upper Caves | Identified exit to Zhirov 2432 | -4/Upper Caves | Discovered exit to Zhirov (range 6) 2471 | -4/Upper Caves | Lost 3 parts (2n1u) 2537 | -4/Upper Caves | Core integrity fell below 50% 2722 | -4/Upper Caves | Build established: Hacker-Mutant 2752 | -4/Upper Caves | Discovered exit to Research (range 16) 2773 | -4/Upper Caves | Entered Research 2773 | -3/Research | Evolved 2 slots: Propulsion x1, Weapon x1 2774 | -3/Research | Loaded intel: 128 machine locations 3120 | -3/Research | Spotted B-86 Titan 3178 | -3/Research | System corruption reached 10% 3217 | -3/Research | Lost 3 parts (3n) 3322 | -3/Research | Lost 6 parts (3n2u1w) 3501 | -3/Research | Core integrity fell below 50% 3522 | -3/Research | Lost 8 parts (3p1n1u3w) 3525 | -3/Research | System corruption reached 30% 3555 | -3/Research | Core integrity fell below 20% 3596 | -3/Research | Destroyed by Y-72 Warden with Railgun Last Messages --------------- Terminal disabled. P-80 Master destroyed. ALERT: Cargo convoy en route, clear transfer corridor. Penetrated by Slug. Slug penetrates Wall. Penetrated by Slug. Slug penetrates Wall. Penetrated by Slug. K-01 Serf collects debris. System corrupted: Matter fused (-8). Slug penetrates Terminal. K-01 Serf collects debris. Penetrated by Slug. K-01 Serf collects debris. Nova Cannon destroyed. Acquired Gamma Rifle. K-01 Serf collects debris. Penetrated by Slug. [Achievement: 5k Club] Map ----- +----------------------------------------------------+ | ?????????????????????????????????????????????????? | | ?????????????????????????????????????????????????? | | ?????????????????????????????????????????????????? | | ?????????????????????????????????????????????????? | | ?????????????????????????????????????????????????? | | ????????????????????????????#######??????????????? | | ???????????????????????????? ???????????????? | | ????#######????????????????? #???????????????? | | ##### #????????????????? #???????????????? | | #######??????????# #???????????????? | | " ????????? #??????????????"" | | #????????????????# #????""???????""" | | ##### #??????########### #????""???????"T? | | ????###+######???# # #????T"???????""? | | ?????## %% #???# # #????""???????""? | | ??????# #???# " # # ???""???????""? | | ??????#%% #???# """ + +???????????????? | | ??????# % #???# "" # #???????????????? | | ??????# ##### # #???????????????? | | ??????# / + # #???????????????? | | ??????############ # u #???????????????? | | ?????????????????########### #??"""""????????? | | ??????????????????##########p #??""Y""????????? | | ??????????????????# ==%kg +???????????????? | | ?????????????????## !!|Y# #???????????????? | | ?????????????????# !=@!# #???????????????? | | ?????????????????## ! # #???????????????? | | ??????????????????# # ###########?????? | | ??????????????????#[ # # #?????? | | ??????????????????# # # #?????? | | ??????????????????# " # / """"#?????? | | ??????????????????#= " # # """"#?????? | | ??????????????????########## # """"#???""" | | ???????????????????????????# # """"#???""" | | ???????????????????????????# # #???""" | | ???????????????????????????# # #???""" | | ???????????????????????????# ###########???""" | | ???????????????????????????# #???????????????? | | ???????????????????????????# #???????????????? | | ?????????????????????"""???# #???????????????? | | ?????????????????????"""???# #???""??????????? | | ?????????????????????"""???# #??"""??????????? | | ???????????????????????????# #??"T???????????? | | ???????????????????????????# #??"""??????????? | | ???????????????????????????+ +???""??????????? | | ???????????????????????????? ????????????????? | | ?????????????????????????????????????????????????? | | ?????????????????????????????????????????????????? | | ?????????????????????????????????????????????????? | | ???????????????????????????????????T?????????????? | +----------------------------------------------------+ Best States ------------- Heat Dissipation 46 Energy Generation 47 Energy Capacity 480 Matter Stores 312 Matter Capacity 500 Sight Range 16 Terrain Scan Density 10 ECM Strength 1 Additional Mass Support 9 Armor Coverage 300 Resistance: KI 60 Resistance: TH 35 Resistance: EX 35 Resistance: EM 35 Resistance: I 35 Resistance: S 35 Resistance: P 35 Propulsion Shielding 33 Utility Shielding 66 Weapon Shielding 33 Weapon Cycling 20 Evasion (%) 73 Melee Accuracy 6 Target Analysis 8 Recoil Reduction 3 Energy Filtering 30 Offensive Hacking 30 Item Schematics ----------------- None Robot Schematics ------------------ None Fabricated ------------ Antimatter Cannon | x1 | -6/Factory | Preloaded Repaired ---------- Propulsion Shielding | 50% | -8/Materials VTOL Module | 28% | -8/Materials Propulsion Shielding | 14% | -5/Factory Alien Tech Used ----------------- None Achievements -------------- 5k Club Can't Catch Me Cya! Dangerous Findings It's Just You Just What I Needed Knowing Is Half The Battle Made in Tau Ceti IV Novice Programmer One Hack Too Far Oops Power Corrupts Serviceable Loadout System Compromised Uninvited Guest Universal Adapter Challenges ------------ None Game ------ Seed PlatingGrapheneGravjet Manual? 0 Play Time 01:55:43 Cumulative 2.9 hours Start 2025.08.04 @ 16:20:32 End 2025.08.04 @ 18:53:46 Sessions 1 Manual Loads 0 Difficulty Explorer Special Mode None Game No. 3 Rogue 0 Adventurer 0 Explorer 3 Win Type - Total 0 Types 0/0/0/0/0/0/0/0/0/0 Lore% 1 Gallery% 8 Achievement% 8 Wizard Run 0 Options --------- Layout 1 ASCII 0 Keyboard 0 Movement Mouse Keybinds 0 Fullscreen 1 Font 24/Smallcaps Map View 50x35 Zoom Use 0% Tactical HUD 0 Map Filters NONE Filters NONE Steam 1 RUN: 63e54977-d3f9-4b72-b53c-6d4dbec0aadf